fUSD/lending_fUSD_20260614
["ID","MTS","AMOUNT","RATE_DAILY","PERIOD"]
[425066329,1781447600000,-300.0,0.00034269,2]
[425066335,1781447600000,-952.739308,0.00034269,2]
[425066370,1781447600000,-494.46461066,0.00034269,2]
[425066362,1781447600000,-599.99999997,0.00034269,2]
[425066369,1781447600000,-300.0,0.00034269,2]
[425066374,1781447600000,-300.0,0.00034269,2]
[425066377,1781447600000,-536.00080955,0.00034269,2]
[425066376,1781447600000,-300.0,0.00034269,2]
[425066375,1781447600000,-300.0,0.00034269,2]
[425066382,1781447600000,-300.7107423,0.00034269,2]
[425066386,1781447600000,-300.0,0.00034269,2]
[425066384,1781447600000,-300.0,0.00034269,2]
[425066380,1781447600000,-302.88430132,0.00034269,2]
[425066378,1781447600000,-729.03553261,0.00034269,2]
[425066381,1781447600000,-300.0,0.00034269,2]
[425066366,1781447600000,-300.0,0.00034269,2]
[425066379,1781447600000,-300.0,0.00034269,2]
[425066390,1781447600000,-867.90204691,0.00034269,2]
[425066389,1781447600000,-300.0,0.00034269,2]
[425066387,1781447600000,-528.28450679,0.00034269,2]
[425066388,1781447600000,-345.19340304,0.00034269,2]
[425066398,1781447600000,-300.0,0.00034269,2]
[425066391,1781447600000,-300.0,0.00034269,2]
[425066392,1781447600000,-952.739308,0.00034269,2]
[425066396,1781447600000,-300.0,0.00034269,2]
[425066394,1781447600000,-300.00000001,0.00034269,2]
[425066397,1781447600000,-310.72237797,0.00034269,2]
[425066395,1781447600000,-300.0,0.00034269,2]
[425066347,1781447600000,-513.11884604,0.00034269,2]
[425066393,1781447600000,-1804.32870853,0.00034269,2]
[425066385,1781447600000,-300.0,0.00034269,2]
[425066365,1781447600000,-599.30097921,0.00034269,2]
[425066383,1781447600000,-300.0,0.00034269,2]
[425066367,1781447600000,-300.0,0.00034269,2]
[425066342,1781447600000,-1345.93432611,0.00034269,2]
[425066368,1781447600000,-300.0,0.00034269,2]
[425066337,1781447600000,-300.0,0.00034269,2]
[425066340,1781447600000,-300.0,0.00034269,2]
[425066339,1781447600000,-310.72237796,0.00034269,2]
[425066344,1781447600000,-300.0,0.00034269,2]
[425066343,1781447600000,-300.0,0.00034269,2]
[425066338,1781447600000,-300.0,0.00034269,2]
[425066345,1781447600000,-300.0,0.00034269,2]
[425066348,1781447600000,-300.0,0.00034269,2]
[425066350,1781447600000,-453.53449125,0.00034269,2]
[425066349,1781447600000,-300.0,0.00034269,2]
[425066351,1781447600000,-300.0,0.00034269,2]
[425066354,1781447600000,-300.0,0.00034269,2]
[425066341,1781447600000,-300.0,0.00034269,2]
[425066372,1781447600000,-599.99999999,0.00034269,2]
[425066353,1781447600000,-300.0,0.00034269,2]
[425066360,1781447600000,-300.0,0.00034269,2]
[425066363,1781447600000,-300.0,0.00034269,2]
[425066364,1781447600000,-300.0,0.00034269,2]
[425066371,1781447600000,-300.0,0.00034269,2]
[425066361,1781447600000,-300.0,0.00034269,2]
[425066373,1781447600000,-606.92603117,0.00034269,2]
[425066358,1781447600000,-300.00000001,0.00034269,2]
[425066356,1781447600000,-300.0,0.00034269,2]
[425066355,1781447600000,-300.0,0.00034269,2]
[425066352,1781447600000,-300.0,0.00034269,2]
[425066359,1781447600000,-300.0,0.00034269,2]
[425066357,1781447600000,-445.4173373,0.00034269,2]
[425066440,1781447601000,-300.0,0.00034269,2]
[425066450,1781447601000,-300.0,0.00034269,2]
[425066449,1781447601000,-1801.4075828,0.00034269,2]
[425066441,1781447601000,-300.0,0.00034269,2]
[425066439,1781447601000,-300.7107423,0.00034269,2]
[425066433,1781447601000,-300.0,0.00034269,2]
[425066438,1781447601000,-300.0,0.00034269,2]
[425066435,1781447601000,-967.37612699,0.00034269,2]
[425066434,1781447601000,-536.00080955,0.00034269,2]
[425066432,1781447601000,-300.0,0.00034269,2]
[425066452,1781447601000,-300.0,0.00034269,2]
[425066431,1781447601000,-606.92603117,0.00034269,2]
[425066430,1781447601000,-300.0,0.00034269,2]
[425066436,1781447601000,-300.0,0.00034269,2]
[425066451,1781447601000,-300.0,0.00034269,2]
[425066447,1781447601000,-573.82590265,0.00034269,2]
[425066446,1781447601000,-300.0,0.00034269,2]
[425066444,1781447601000,-344.62344183,0.00034269,2]
[425066443,1781447601000,-300.0,0.00034269,2]
[425066442,1781447601000,-300.0,0.00034269,2]
[425066448,1781447601000,-952.739308,0.00034269,2]
[425066453,1781447601000,-310.21957364,0.00034269,2]
[425066456,1781447601000,-300.0,0.00034269,2]
[425066454,1781447601000,-413.0861918,0.00034269,2]
[425066458,1781447601000,-300.0,0.00034269,2]
[425066457,1781447601000,-300.0,0.00034269,2]
[425066455,1781447601000,-1342.43084296,0.00034269,2]
[425066459,1781447601000,-596.31535155,0.00034269,2]
[425066460,1781447601000,-300.0,0.00034269,2]
[425066445,1781447601000,-300.0,0.00034269,2]
[425066437,1781447601000,-302.39129492,0.00034269,2]
[425066404,1781447601000,-300.0,0.00034269,2]
[425066428,1781447601000,-599.99999999,0.00034269,2]
[425066466,1781447601000,-445.4173373,0.00034269,2]
[425066400,1781447601000,-1345.93432611,0.00034269,2]
[425066399,1781447601000,-300.0,0.00034269,2]
[425066411,1781447601000,-300.0,0.00034269,2]
[425066412,1781447601000,-300.0,0.00034269,2]
[425066402,1781447601000,-300.0,0.00034269,2]
[425066409,1781447601000,-300.0,0.00034269,2]
[425066401,1781447601000,-300.0,0.00034269,2]
[425066408,1781447601000,-453.53449126,0.00034269,2]
[425066407,1781447601000,-582.29121546,0.00034269,2]
[425066403,1781447601000,-596.31535155,0.00034269,2]
[425066410,1781447601000,-300.0,0.00034269,2]
[425066406,1781447601000,-300.0,0.00034269,2]
[425066405,1781447601000,-300.0,0.00034269,2]
[425066424,1781447601000,-300.0,0.00034269,2]
[425066414,1781447601000,-300.0,0.00034269,2]
[425066413,1781447601000,-445.4173373,0.00034269,2]
[425066425,1781447601000,-300.0,0.00034269,2]
[425066415,1781447601000,-300.0,0.00034269,2]
[425066416,1781447601000,-300.0,0.00034269,2]
[425066418,1781447601000,-1099.23393786,0.00034269,2]
[425066422,1781447601000,-300.0,0.00034269,2]
[425066417,1781447601000,-300.0,0.00034269,2]
[425066420,1781447601000,-300.0,0.00034269,2]
[425066419,1781447601000,-300.00000001,0.00034269,2]
[425066421,1781447601000,-300.0,0.00034269,2]
[425066423,1781447601000,-300.0,0.00034269,2]
[425066426,1781447601000,-300.0,0.00034269,2]
[425066427,1781447601000,-300.0,0.00034269,2]
[425066429,1781447601000,-494.46461066,0.00034269,2]
[425066461,1781447601000,-300.0,0.00034269,2]
[425066523,1781447601000,-301.69836427,0.00034269,2]
[425066462,1781447601000,-300.0,0.00034269,2]
[425066505,1781447601000,-536.00080955,0.00034269,2]
[425066496,1781447601000,-445.4173373,0.00034269,2]
[425066500,1781447601000,-300.0,0.00034269,2]
[425066497,1781447601000,-300.0,0.00034269,2]
[425066499,1781447601000,-300.0,0.00034269,2]
[425066501,1781447601000,-493.65978926,0.00034269,2]
[425066498,1781447601000,-300.0,0.00034269,2]
[425066506,1781447601000,-301.69836427,0.00034269,2]
[425066508,1781447601000,-300.0,0.00034269,2]
[425066509,1781447601000,-528.79294623,0.00034269,2]
[425066510,1781447601000,-300.0,0.00034269,2]
[425066512,1781447601000,-300.0,0.00034269,2]
[425066514,1781447601000,-300.0,0.00034269,2]
[425066517,1781447601000,-300.0,0.00034269,2]
[425066516,1781447601000,-445.4173373,0.00034269,2]
[425066511,1781447601000,-300.0,0.00034269,2]
[425066515,1781447601000,-300.0,0.00034269,2]
[425066507,1781447601000,-300.00000002,0.00034269,2]
[425066513,1781447601000,-300.0,0.00034269,2]
[425066518,1781447601000,-300.0,0.00034269,2]
[425066519,1781447601000,-300.0,0.00034269,2]
[425066520,1781447601000,-606.92603117,0.00034269,2]
[425066521,1781447601000,-300.0,0.00034269,2]
[425066522,1781447601000,-300.0,0.00034269,2]
[425066526,1781447601000,-300.0,0.00034269,2]
[425066524,1781447601000,-528.35599955,0.00034269,2]
[425066465,1781447601000,-300.0,0.00034269,2]
[425066527,1781447601000,-300.0,0.00034269,2]
[425066528,1781447601000,-595.35563827,0.00034269,2]
[425066495,1781447601000,-300.0,0.00034269,2]
[425066502,1781447601000,-606.92603117,0.00034269,2]
[425066525,1781447601000,-300.0,0.00034269,2]
[425066493,1781447601000,-300.0,0.00034269,2]
[425066504,1781447601000,-300.0,0.00034269,2]
[425066464,1781447601000,-300.0,0.00034269,2]
[425066468,1781447601000,-300.0,0.00034269,2]
[425066478,1781447601000,-536.00080955,0.00034269,2]
[425066479,1781447601000,-300.00000001,0.00034269,2]
[425066467,1781447601000,-1098.33497776,0.00034269,2]
[425066471,1781447601000,-300.0,0.00034269,2]
[425066476,1781447601000,-300.0,0.00034269,2]
[425066472,1781447601000,-300.0,0.00034269,2]
[425066474,1781447601000,-300.00000001,0.00034269,2]
[425066470,1781447601000,-300.0,0.00034269,2]
[425066469,1781447601000,-300.0,0.00034269,2]
[425066475,1781447601000,-606.92603117,0.00034269,2]
[425066473,1781447601000,-494.46461066,0.00034269,2]
[425066477,1781447601000,-300.0,0.00034269,2]
[425066463,1781447601000,-300.0,0.00034269,2]
[425066482,1781447601000,-300.0,0.00034269,2]
[425066480,1781447601000,-300.00000001,0.00034269,2]
[425066489,1781447601000,-300.0,0.00034269,2]
[425066486,1781447601000,-300.0,0.00034269,2]
[425066492,1781447601000,-596.31535158,0.00034269,2]
[425066485,1781447601000,-300.0,0.00034269,2]
[425066487,1781447601000,-300.0,0.00034269,2]
[425066503,1781447601000,-300.0,0.00034269,2]
[425066483,1781447601000,-300.0,0.00034269,2]
[425066488,1781447601000,-951.19966157,0.00034269,2]
[425066491,1781447601000,-300.64258844,0.00034269,2]
[425066494,1781447601000,-512.29002228,0.00034269,2]
[425066481,1781447601000,-300.10072222,0.00034269,2]
[425066490,1781447601000,-300.0,0.00034269,2]
[425066484,1781447601000,-300.0,0.00034269,2]
[425066569,1781447602000,-952.66146573,0.00034269,2]
[425066568,1781447602000,-345.16203924,0.00034269,2]
[425066571,1781447602000,-300.0,0.00034269,2]
[425066560,1781447602000,-300.92547034,0.00034269,2]
[425066565,1781447602000,-413.27521201,0.00034269,2]
[425066558,1781447602000,-301.31343254,0.00034269,2]
[425066562,1781447602000,-528.86443899,0.00034269,2]
[425066570,1781447602000,-301.23127261,0.00034269,2]
[425066561,1781447602000,-461.48343835,0.00034269,2]
[425066567,1781447602000,-656.64500106,0.00034269,2]
[425066563,1781447602000,-1812.34910102,0.00034269,2]
[425066566,1781447602000,-1804.18128636,0.00034269,2]
[425066564,1781447602000,-840.34006883,0.00034269,2]
[425066574,1781447602000,-301.22182234,0.00034269,2]
[425066572,1781447602000,-709.83564963,0.00034269,2]
[425066582,1781447602000,-300.0,0.00034269,2]
[425066583,1781447602000,-1345.93432611,0.00034269,2]
[425066581,1781447602000,-312.69735713,0.00034269,2]
[425066576,1781447602000,-300.8582186,0.00034269,2]
[425066584,1781447602000,-596.39173255,0.00034269,2]
[425066579,1781447602000,-300.0,0.00034269,2]
[425066577,1781447602000,-300.95774125,0.00034269,2]
[425066578,1781447602000,-300.0,0.00034269,2]
[425066575,1781447602000,-300.78137605,0.00034269,2]
[425066580,1781447602000,-312.69735713,0.00034269,2]
[425066559,1781447602000,-834.9032276,0.00034269,2]
[425066573,1781447602000,-871.62482575,0.00034269,2]
[425066554,1781447602000,-300.31962012,0.00034269,2]
[425066532,1781447602000,-300.0,0.00034269,2]
[425066551,1781447602000,-453.59130594,0.00034269,2]
[425066529,1781447602000,-300.0,0.00034269,2]
[425066530,1781447602000,-443.67814697,0.00034269,2]
[425066531,1781447602000,-394.6187743,0.00034269,2]
[425066535,1781447602000,-301.69836427,0.00034269,2]
[425066543,1781447602000,-300.0,0.00034269,2]
[425066542,1781447602000,-301.04690611,0.00034269,2]
[425066534,1781447602000,-300.0,0.00034269,2]
[425066541,1781447602000,-606.3599069,0.00034269,2]
[425066533,1781447602000,-606.92603117,0.00034269,2]
[425066536,1781447602000,-300.0,0.00034269,2]
[425066537,1781447602000,-300.0,0.00034269,2]
[425066538,1781447602000,-453.59130594,0.00034269,2]
[425066553,1781447602000,-300.0,0.00034269,2]
[425066540,1781447602000,-303.59826033,0.00034269,2]
[425066539,1781447602000,-300.0,0.00034269,2]
[425066545,1781447602000,-311.981286,0.00034269,2]
[425066544,1781447602000,-412.58348338,0.00034269,2]
[425066546,1781447602000,-453.59130594,0.00034269,2]
[425066555,1781447602000,-300.0,0.00034269,2]
[425066557,1781447602000,-528.86443899,0.00034269,2]
[425066547,1781447602000,-300.0,0.00034269,2]
[425066556,1781447602000,-301.31183059,0.00034269,2]
[425066548,1781447602000,-300.0,0.00034269,2]
[425066550,1781447602000,-311.981286,0.00034269,2]
[425066552,1781447602000,-447.38175371,0.00034269,2]
[425066549,1781447602000,-954.03731568,0.00034269,2]
[425066585,1781447602000,-300.0,0.00034269,2]
[425066589,1781447602000,-300.0,0.00034269,2]
[425066630,1781447602000,-300.0,0.00034269,2]
[425066590,1781447602000,-300.0,0.00034269,2]
[425066613,1781447602000,-300.0,0.00034269,2]
[425066624,1781447602000,-513.18457926,0.00034269,2]
[425066622,1781447602000,-300.0,0.00034269,2]
[425066623,1781447602000,-300.0,0.00034269,2]
[425066621,1781447602000,-596.39173255,0.00034269,2]
[425066626,1781447602000,-583.4214993,0.00034269,2]
[425066636,1781447602000,-300.0,0.00034269,2]
[425066638,1781447602000,-300.0,0.00034269,2]
[425066625,1781447602000,-300.0,0.00034269,2]
[425066637,1781447602000,-300.0,0.00034269,2]
[425066628,1781447602000,-453.59130594,0.00034269,2]
[425066627,1781447602000,-300.0,0.00034269,2]
[425066620,1781447602000,-1345.93432611,0.00034269,2]
[425066629,1781447602000,-300.0,0.00034269,2]
[425066633,1781447602000,-300.0,0.00034269,2]
[425066631,1781447602000,-300.0,0.00034269,2]
[425066635,1781447602000,-300.0,0.00034269,2]
[425066634,1781447602000,-445.4173373,0.00034269,2]
[425066639,1781447602000,-300.0,0.00034269,2]
[425066641,1781447602000,-179.1812157,0.00034275,60]
[425066642,1781447602000,-250.0,0.000343,2]
[425066643,1781447602000,-250.0,0.000343,2]
[425066644,1781447602000,-250.0,0.000343,2]
[425066640,1781447602000,-195.7163959,0.00034275,60]
[425066645,1781447602000,-250.79,0.000343,10]
[425066587,1781447602000,-513.07662107,0.00034269,2]
[425066632,1781447602000,-300.0,0.00034269,2]
[425066619,1781447602000,-300.0,0.00034269,2]
[425066646,1781447602000,-416.31,0.000343,10]
[425066618,1781447602000,-300.0,0.00034269,2]
[425066588,1781447602000,-300.0,0.00034269,2]
[425066586,1781447602000,-300.0,0.00034269,2]
[425066591,1781447602000,-300.0,0.00034269,2]
[425066594,1781447602000,-300.0,0.00034269,2]
[425066592,1781447602000,-300.0,0.00034269,2]
[425066593,1781447602000,-300.0,0.00034269,2]
[425066595,1781447602000,-300.0,0.00034269,2]
[425066614,1781447602000,-528.86443899,0.00034269,2]
[425066597,1781447602000,-300.0,0.00034269,2]
[425066598,1781447602000,-1099.38202061,0.00034269,2]
[425066608,1781447602000,-729.03553261,0.00034269,2]
[425066607,1781447602000,-300.0,0.00034269,2]
[425066610,1781447602000,-300.0,0.00034269,2]
[425066596,1781447602000,-834.69076106,0.00034269,2]
[425066602,1781447602000,-300.0,0.00034269,2]
[425066616,1781447602000,-300.0,0.00034269,2]
[425066600,1781447602000,-300.0,0.00034269,2]
[425066615,1781447602000,-300.0,0.00034269,2]
[425066617,1781447602000,-310.7601452,0.00034269,2]
[425066603,1781447602000,-300.0,0.00034269,2]
[425066601,1781447602000,-300.0,0.00034269,2]
[425066612,1781447602000,-527.73423052,0.00034269,2]
[425066605,1781447602000,-480.82856954,0.00034269,2]
[425066604,1781447602000,-300.0,0.00034269,2]
[425066609,1781447602000,-302.92480273,0.00034269,2]
[425066611,1781447602000,-300.7107423,0.00034269,2]
[425066599,1781447602000,-300.0,0.00034269,2]
[425066606,1781447602000,-494.53026193,0.00034269,2]
[425066680,1781447603000,-1515.88,0.000345,20]
[425066688,1781447603000,-1000.0,0.0003452,8]
[425066682,1781447603000,-1260.836,0.000345,30]
[425066683,1781447603000,-1260.836,0.000345,30]
[425066684,1781447603000,-1260.83,0.000345,30]
[425066672,1781447603000,-902.5982,0.000345,10]
[425066691,1781447603000,-2062.8441,0.00034526,2]
[425066681,1781447603000,-759.5408,0.000345,30]
[425066676,1781447603000,-1515.88,0.000345,10]
[425066679,1781447603000,-1515.88,0.000345,30]
[425066692,1781447603000,-700.0,0.00034541,5]
[425066685,1781447603000,-425.78792925,0.00034506,7]
[425066699,1781447603000,-150.0,0.0003455,2]
[425066690,1781447603000,-1658.7088,0.00034526,2]
[425066689,1781447603000,-1682.98,0.0003452,2]
[425066687,1781447603000,-2000.0,0.0003452,2]
[425066693,1781447603000,-13019.34,0.00034544,60]
[425066696,1781447603000,-631.0,0.00034549,2]
[425066697,1781447603000,-1228.0,0.00034549,2]
[425066695,1781447603000,-1275.0,0.00034549,2]
[425066694,1781447603000,-892.64,0.00034544,60]
[425066702,1781447603000,-500.0,0.00034574,5]
[425066703,1781447603000,-250.0,0.0003465,2]
[425066698,1781447603000,-150.0,0.0003455,2]
[425066678,1781447603000,-1515.88,0.000345,20]
[425066686,1781447603000,-500.0,0.0003452,120]
[425066671,1781447603000,-759.5408,0.000345,30]
[425066659,1781447603000,-408.26628839,0.00034453,2]
[425066677,1781447603000,-759.5408,0.000345,20]
[425066701,1781447603000,-150.0,0.0003455,2]
[425066656,1781447603000,-5000.0,0.0003445,3]
[425066651,1781447603000,-298.8808056,0.00034359,120]
[425066647,1781447603000,-316.0,0.000343,2]
[425066652,1781447603000,-313.0,0.000344,120]
[425066655,1781447603000,-154.714086,0.00034422,120]
[425066653,1781447603000,-150.0,0.000344,120]
[425066649,1781447603000,-1000.0,0.000343,2]
[425066650,1781447603000,-200.0,0.00034356,60]
[425066654,1781447603000,-1526.70646528,0.00034416,7]
[425066648,1781447603000,-309.0,0.000343,2]
[425066658,1781447603000,-407.0,0.00034453,2]
[425066673,1781447603000,-759.5408,0.000345,20]
[425066668,1781447603000,-500.0,0.00034453,2]
[425066667,1781447603000,-500.0,0.00034453,2]
[425066663,1781447603000,-150.0,0.00034453,2]
[425066666,1781447603000,-500.0,0.00034453,2]
[425066660,1781447603000,-150.0,0.00034453,2]
[425066664,1781447603000,-150.0,0.00034453,2]
[425066661,1781447603000,-150.0,0.00034453,2]
[425066662,1781447603000,-150.0,0.00034453,2]
[425066665,1781447603000,-150.0,0.00034453,2]
[425066670,1781447603000,-45654.97,0.000345,21]
[425066669,1781447603000,-1419.57363136,0.00034459,2]
[425066675,1781447603000,-1515.88,0.000345,30]
[425066674,1781447603000,-1515.88,0.000345,20]
[425066657,1781447603000,-407.0,0.00034453,2]
[425066704,1781447603000,-250.0,0.0003465,2]
[425066700,1781447603000,-150.0,0.0003455,2]
[425066753,1781447603000,-1000.0,0.00035,2]
[425066735,1781447603000,-9137.1294,0.00034896,2]
[425066733,1781447603000,-278.02,0.00034802,7]
[425066730,1781447603000,-1500.0,0.00034795,2]
[425066740,1781447603000,-178.1342691,0.00034914,30]
[425066736,1781447603000,-28178.87615991,0.000349,10]
[425066743,1781447603000,-400.0,0.00034952,2]
[425066754,1781447603000,-28978.46936334,0.00035,7]
[425066745,1781447603000,-50000.0,0.00035,9]
[425066748,1781447603000,-151.307,0.00035,2]
[425066744,1781447603000,-400.0,0.00034952,2]
[425066747,1781447603000,-150.0,0.00035,2]
[425066742,1781447603000,-157.59783792,0.00034946,2]
[425066731,1781447603000,-416.8662437,0.000348,10]
[425066746,1781447603000,-150.0,0.00035,2]
[425066749,1781447603000,-9618.58114599,0.00035,7]
[425066751,1781447603000,-16908.53016081,0.00035,5]
[425066750,1781447603000,-9618.58114599,0.00035,7]
[425066756,1781447603000,-5500.0,0.00035,7]
[425066758,1781447603000,-2488.49022785,0.00035,7]
[425066755,1781447603000,-28978.46936334,0.00035,7]
[425066757,1781447603000,-2488.49022785,0.00035,7]
[425066759,1781447603000,-14489.23468167,0.00035,7]
[425066760,1781447603000,-14489.23468167,0.00035,7]
[425066761,1781447603000,-800.0,0.00035,7]
[425066762,1781447603000,-9250.5,0.00035,10]
[425066705,1781447603000,-1824.42990203,0.0003465,120]
[425066752,1781447603000,-70365.91848567,0.00035,14]
[425066741,1781447603000,-154.547336,0.00034921,120]
[425066734,1781447603000,-150.0,0.00034887,30]
[425066738,1781447603000,-150.0,0.000349,120]
[425066707,1781447603000,-482.15,0.00034701,2]
[425066706,1781447603000,-9137.1294,0.0003465,2]
[425066709,1781447603000,-185.12,0.00034702,2]
[425066716,1781447603000,-573.39,0.00034704,2]
[425066708,1781447603000,-151.0,0.00034702,2]
[425066711,1781447603000,-644.12,0.00034704,2]
[425066710,1781447603000,-644.12,0.00034704,2]
[425066712,1781447603000,-396.17,0.00034704,2]
[425066732,1781447603000,-1641.58152,0.000348,120]
[425066714,1781447603000,-396.17,0.00034704,2]
[425066713,1781447603000,-243.64,0.00034704,2]
[425066717,1781447603000,-644.12,0.00034705,2]
[425066719,1781447603000,-643.98,0.00034705,2]
[425066725,1781447603000,-200.79824179,0.00034775,120]
[425066715,1781447603000,-644.12,0.00034704,2]
[425066729,1781447603000,-1000.0,0.00034794,8]
[425066723,1781447603000,-9137.1294,0.00034773,2]
[425066718,1781447603000,-573.4,0.00034705,2]
[425066721,1781447603000,-153.594802,0.00034737,120]
[425066722,1781447603000,-1002.5386826,0.00034764,30]
[425066724,1781447603000,-212.06995763,0.00034775,120]
[425066727,1781447603000,-500.0,0.00034794,120]
[425066728,1781447603000,-2000.0,0.00034794,2]
[425066726,1781447603000,-12270.15,0.0003478,60]
[425066739,1781447603000,-503.35265666,0.00034911,30]
[425066737,1781447603000,-313.0,0.000349,120]
[425066720,1781447603000,-572.84,0.00034705,2]
[425066797,1781447604000,-6282.60604509,0.00035,7]
[425066806,1781447604000,-40602.8887239,0.00035,2]
[425066801,1781447604000,-3141.30302254,0.00035,7]
[425066800,1781447604000,-3141.30302254,0.00035,7]
[425066803,1781447604000,-12702.15357194,0.00035,7]
[425066799,1781447604000,-22096.6321946,0.00035,7]
[425066802,1781447604000,-12702.15357194,0.00035,7]
[425066796,1781447604000,-6282.60604509,0.00035,7]
[425066798,1781447604000,-22096.6321946,0.00035,7]
[425066804,1781447604000,-500.0,0.00035,13]
[425066807,1781447604000,-247.05,0.00035,2]
[425066793,1781447604000,-300.0,0.00035,7]
[425066805,1781447604000,-324298.29,0.00035,10]
[425066826,1781447604000,-76141.35207062,0.00035,15]
[425066815,1781447604000,-265.31991817,0.00035,120]
[425066810,1781447604000,-1402.89,0.00035,30]
[425066811,1781447604000,-423.0,0.00035,2]
[425066809,1781447604000,-676.29708216,0.00035,2]
[425066813,1781447604000,-512.97205329,0.00035,120]
[425066812,1781447604000,-334.0,0.00035,2]
[425066814,1781447604000,-331.96218981,0.00035,120]
[425066808,1781447604000,-594.20554523,0.00035,2]
[425066817,1781447604000,-324.31386013,0.00035,120]
[425066819,1781447604000,-543.0,0.00035,120]
[425066822,1781447604000,-194.211,0.00035,2]
[425066818,1781447604000,-423.0,0.00035,2]
[425066795,1781447604000,-12565.21209018,0.00035,7]
[425066816,1781447604000,-463.01413087,0.00035,120]
[425066794,1781447604000,-12565.21209018,0.00035,7]
[425066765,1781447604000,-457.48685214,0.00035,5]
[425066790,1781447604000,-19150.94854924,0.00035,7]
[425066766,1781447604000,-3326.33608515,0.00035,7]
[425066767,1781447604000,-3326.33608515,0.00035,7]
[425066764,1781447604000,-3185.43361248,0.00035,7]
[425066763,1781447604000,-3185.43361248,0.00035,7]
[425066768,1781447604000,-251.0,0.00035,7]
[425066769,1781447604000,-292.0,0.00035,7]
[425066776,1781447604000,-106012.12,0.00035,15]
[425066771,1781447604000,-161.27364646,0.00035,7]
[425066772,1781447604000,-2000.0,0.00035,2]
[425066775,1781447604000,-1590.0,0.00035,7]
[425066770,1781447604000,-161.27364646,0.00035,7]
[425066779,1781447604000,-5925.30396399,0.00035,7]
[425066777,1781447604000,-200000.0,0.00035,20]
[425066774,1781447604000,-150.0,0.00035,7]
[425066773,1781447604000,-2002.0301328,0.00035,2]
[425066778,1781447604000,-5925.30396399,0.00035,7]
[425066780,1781447604000,-5872.37365179,0.00035,7]
[425066791,1781447604000,-19150.94854924,0.00035,7]
[425066781,1781447604000,-5872.37365179,0.00035,7]
[425066783,1781447604000,-1548.73023618,0.00035,7]
[425066784,1781447604000,-1548.73023618,0.00035,7]
[425066782,1781447604000,-2500.0,0.00035,2]
[425066786,1781447604000,-4430.74539494,0.00035,7]
[425066787,1781447604000,-250.0,0.00035,2]
[425066789,1781447604000,-5343.95471038,0.00035,2]
[425066785,1781447604000,-4430.74539494,0.00035,7]
[425066788,1781447604000,-393617.3238848,0.00035,2]
[425066792,1781447604000,-32351.98279966,0.00035,5]
[425066828,1781447604000,-5042.67992619,0.00035,15]
[425066884,1781447604000,-151.789695,0.00035456,120]
[425066823,1781447604000,-167.70185156,0.00035,2]
[425066855,1781447604000,-214.55542187,0.00035083,14]
[425066858,1781447604000,-153.446579,0.00035163,120]
[425066857,1781447604000,-9137.1294,0.00035143,2]
[425066861,1781447604000,-200.0,0.0003521,5]
[425066864,1781447604000,-9137.1294,0.00035266,2]
[425066860,1781447604000,-1062.02512953,0.00035202,2]
[425066859,1781447604000,-1000.0,0.00035202,2]
[425066862,1781447604000,-200.0,0.00035256,5]
[425066863,1781447604000,-158.24269055,0.00035264,2]
[425066866,1781447604000,-150.0,0.00035285,2]
[425066872,1781447604000,-500.0,0.00035342,120]